Cogmind - Beta 14 @@@ ROGUE MODE // 2025.05.02 @ 05:20:31 Player: KTG-V3 Result: Destroyed by S-43 Plague with Heavy Machine Gun Performance ------------- Evolutions (7) 3500 Regions Visited (22) 4400 Robots Destroyed (383) 1915 Value Destroyed (17505) 17505 Prototype IDs (55) 1100 Alien Tech Used (12) 2400 Bonus (12389) 12389 TOTAL SCORE: 43209 Bonus ------- High Alert Combat Kills 1518 Follower Combat Kills 2328 Registered with UFD 300 Met Data Miner 300 Met Zhirov 300 Met Warlord at Base 500 MAIN.C Attacked Warlord 500 Warlord Defense Kills 5278 Used Core Reset Matrix 3000 Friendly Fire -1635 Cogmind --------- Core Integrity 0/1300 Matter 300/300 Energy 150/150 System Corruption 5% Temperature Cool (0) Movement Core (1600) Ox31 Location -3/Section 7 Parts ------- > --- POWER (2) -------- Micro Antimatter Reactor > --- PROPULSION (6) --- (None) > --- UTILITY (9) ------ Huge Storage Unit Advanced Signal Interpreter Advanced Transmission Jammer Graphene Brace Advanced Hacking Suite > --- WEAPON (4) ------- Mini Smartbomb Launcher > --- INVENTORY (25) --- Reinforced Fission Core Micro Antimatter Reactor Medium Treads Advanced Cooling System Advanced Energy Well (500) Advanced Energy Well (500) Improved Matter Compressor (300) Deep Structural Scanner Advanced Sensor Array Long-range Terrain Scanner Improved Weapon Cycler Antimissile System High-powered Tractor Beam High-powered Transdimensional Reconstructor Subatomic Replicator Spacefold Activator Long-range Proton Cannon Heavy Neutron Cannon Improved Matter Neutralizer Core Cannon Hardcell Cannon Peak State ------------ > --- POWER ------------ Micro Antimatter Reactor Micro Antimatter Reactor > --- PROPULSION ------- Armored Heavy Treads Improved Heavy Siege Treads Improved Heavy Siege Treads > --- UTILITY ---------- Advanced Coolant Injector Huge Storage Unit Advanced Signal Interpreter Experimental Core Analyzer Quantum Capacitor Phase Armor Advanced Hacking Suite > --- WEAPON ----------- Nova Cannon Improved Matter Neutralizer Sigix Broadsword > --- INVENTORY -------- Micro Antimatter Reactor Micro Antimatter Reactor Advanced Cryofiber Web Advanced Heat Sink Advanced Coolant Injector Advanced Energy Well Advanced Energy Well Improved Matter Compressor Deep Structural Scanner Advanced Sensor Array Long-range Terrain Scanner Improved Weapon Cycler Advanced Transmission Jammer Antimissile System High-powered Tractor Beam Dimensional Node Initializer Transdimensional Reconstructor High-powered Transdimensional Reconstructor Subatomic Replicator Long-range Proton Cannon Core Cannon Mini Smartbomb Launcher Core Stripper [Rating: 202] Favorites ----------- Power Neutrino Core Engine Cooled Ion Engine Power Core Neutrino Core Reactor Micro Antimatter Reactor Propulsion Improved Treads Treads Improved Treads Leg Aluminum Leg Wheel Overtuned Scrapsphere Utility Huge Storage Unit Device Scrap Suit Storage Huge Storage Unit Processor Advanced Signal Interpreter Hackware Advanced Hacking Suite Protection Improved Medium Armor Plating Artifact Phase Armor Weapon Shotgun Energy Gun Plasma Rifle Energy Cannon Phase Cannon Ballistic Gun Shotgun Launcher Mini Smartbomb Launcher Special Weapon Improved Remote Datajack Impact Weapon Core Stripper Slashing Weapon Sigix Broadsword Special Melee Weapon Datajack Build | -11 -10 -9 -9 -9 -9 -6 -6 -6 -6 -5 -5 -5 -5 -5 -4 -4 -4 -4 -3 -3 -3 -3 ------- Run | Yrd Mat Mat Sto Rec Scr Fac Low Low Dat Pro Fac Upp Upp Zhi Pro Fac Upp War Pro Res Qua Sec Slots Evolved 14 | . . 2 . . . 6 . . . . 2 . . . . 2 . . . 2 . . Power 1 | . . . . . . . . . . . 1 . . . . . . . . . . . Propulsion 4 | . . 1 . . . . . . . . 1 . . . . . . . . 2 . . Utility 7 | . . . . . . 5 . . . . . . . . . 2 . . . . . . Weapon 2 | . . 1 . . . 1 . . . . . . . . . . . . . . . . Parts Attached 716 | 8 21 31 35 4 21 52 7 35 2 38 64 14 4 12 23 116 18 44 13 35 54 65 Power 49 | 1 1 4 1 . 1 1 . . . . 7 . . 1 . 15 2 3 1 2 7 2 Engine 11 | 1 1 4 1 . 1 1 . . . . 2 . . . . . . . . . . . Core 20 | . . . . . . . . . . . 5 . . . . 9 1 2 1 . . 2 Reactor 18 | . . . . . . . . . . . . . . 1 . 6 1 1 . 2 7 . Propulsion 83 | 2 8 18 7 1 6 4 . . . . 5 . . 1 . 10 . 6 2 2 3 8 Treads 66 | 2 2 14 7 1 6 2 . . . . 4 . . 1 . 6 . 6 2 2 3 8 Leg 3 | . 3 . . . . . . . . . . . . . . . . . . . . . Wheel 14 | . 3 4 . . . 2 . . . . 1 . . . . 4 . . . . . . Hover . | . . . . . . . . . . . . . . . . . . . . . . . Flight . | . . . . . . . . . . . . . . . . . . . . . . . Utility 372 | 2 7 5 24 2 1 37 7 24 2 17 29 12 4 3 17 55 9 10 6 23 36 40 Device 301 | 1 6 4 14 1 . 28 5 20 1 15 27 8 3 1 14 46 8 7 4 19 34 35 Storage 6 | 1 1 1 . . 1 . . . . . . 1 . . . 1 . . . . . . Processor 13 | . . . . . . 1 1 . . . . . . . . 5 1 . 1 2 1 1 Hackware 3 | . . . . . . 2 . . . . . . . . . 1 . . . . . . Protection 46 | . . . 10 1 . 6 1 4 1 2 2 3 1 2 3 2 . 3 1 2 . 2 Artifact 3 | . . . . . . . . . . . . . . . . . . . . . 1 2 Weapon 212 | 3 5 4 3 1 13 10 . 11 . 21 23 2 . 7 6 36 7 25 4 8 8 15 Energy Gun 32 | 1 . 1 1 . . . . 1 . 4 . . . . . 11 2 9 1 1 . . Energy Cannon 42 | . . . . . . . . 2 . 4 5 1 . 1 2 6 1 1 1 1 5 12 Ballistic Gun 93 | 2 5 3 2 1 11 7 . 5 . 10 13 . . 6 2 13 2 3 2 5 1 . Ballistic Cannon . | . . . . . . . . . . . . . . . . . . . . . . . Launcher 22 | . . . . . . 2 . 2 . 3 1 1 . . 2 4 2 2 . 1 . 2 Special Weapon 17 | . . . . . . 1 . . . . 4 . . . . 2 . 10 . . . . Impact Weapon 1 | . . . . . . . . . . . . . . . . . . . . . . 1 Slashing Weapon 2 | . . . . . . . . . . . . . . . . . . . . . 2 . Piercing Weapon . | . . . . . . . . . . . . . . . . . . . . . . . Special Melee Weapon 3 | . . . . . 2 . . 1 . . . . . . . . . . . . . . Unidentified Prototypes 23 | . . 2 3 . . 1 . . . . 1 . . 3 . 1 . 2 1 1 5 3 Corrupted Parts 12 | . . . . . . . . . . 5 . . . . 1 4 . . 2 . . . System Corruption 85 | . . . . . . . . . . 42 . . . . 11 24 . . 8 . . . Parts Lost 76 | . 2 1 . . . 1 . 1 . 1 4 . . . 3 32 6 4 3 2 5 11 Power 11 | . . . . . . . . . . . . . . . . 6 2 . . 1 1 1 Propulsion 15 | . 1 1 . . . . . . . . 1 . . . . 4 1 . 1 . 1 5 Utility 21 | . . . . . . . . . . 1 1 . . . 2 9 2 2 . 1 1 2 Weapon 29 | . 1 . . . . 1 . 1 . . 2 . . . 1 13 1 2 2 . 2 3 Highest Loss Streak 11 | . 1 1 . . . 1 . 1 . 1 2 . . . 3 11 6 2 2 1 2 11 To Critical Strikes 1 | . . . . . . . . . . . . . . . . 1 . . . . . . Average Slot Usage (%) 89 | . 99 97 99 85 97 90 92 92 93 87 84 87 88 63 80 84 79 86 76 78 73 69 Engine 5 | . 14 10 11 11 10 6 6 6 6 6 3 . . . . . . . . . . . Core 1 | . . . . . . . . . . . 3 11 11 6 5 3 4 4 5 1 . 3 Reactor 1 | . . . . . . . . . . . . . . 3 5 6 5 4 . 5 9 4 Treads 15 | . 16 22 33 33 32 7 6 6 6 6 10 11 11 7 5 5 2 8 5 9 13 18 Wheel 5 | . 10 9 . . . 11 13 13 13 13 7 5 5 5 5 7 5 5 5 4 . . Device 14 | . 14 11 8 3 11 17 13 19 19 13 15 22 22 16 25 14 21 20 15 12 15 13 Storage 7 | . 14 11 11 11 9 6 6 6 6 6 5 5 5 5 5 5 5 5 5 4 4 4 Processor 3 | . . . . . . 3 12 6 6 6 2 . . . . 14 8 8 9 9 8 4 Hackware 1 | . . . . . . 2 . . . . . . . . . 4 5 5 5 4 4 4 Protection 2 | . . . 2 7 . 6 6 6 6 6 5 5 5 11 2 . . 1 4 5 . 3 Energy Gun 1 | . . . . . . . . 1 . 1 . . . . . 5 9 11 4 2 . . Energy Cannon 1 | . . . . . . . . 2 6 1 1 4 5 . 3 1 4 1 5 3 6 8 Ballistic Gun 19 | . 28 31 32 18 27 25 26 21 20 22 20 17 17 1 16 11 4 3 9 11 3 . Peak Build Rating 202 | 7 12 18 26 26 28 56 56 66 65 65 91 89 87 95 97 103 101 120 103 142 202 175 Average Rating 63 | 5 9 15 21 20 25 46 54 58 62 61 75 85 85 75 92 91 94 106 96 130 170 153 On Entrance 64 | . 7 11 18 25 15 24 56 54 62 65 61 85 87 87 95 92 90 73 71 103 134 160 Naked Turns . | . . . . . . . . . . . . . . . . . . . . . . . Heaviest Build 180 | 14 53 99 105 105 99 132 133 141 141 141 148 153 153 156 156 145 151 163 132 151 177 180 Greatest Support 215 | 40 40 60 69 69 81 66 16 16 16 16 20 20 20 20 20 30 20 20 70 145 210 215 Greatest Overweight (x) 14 | 1 5 9 1 1 1 14 8 8 8 8 9 7 7 7 7 10 7 8 6 7 7 1 Average Overweight (x) 4 | . 4 5 1 1 . 6 7 7 7 7 7 6 7 6 6 4 6 6 5 5 . . Largest Inventory Capacity 25 | 8 20 25 25 25 25 25 25 25 25 25 25 25 25 25 25 25 25 25 25 25 25 25 Average Capacity 24 | 7 19 23 25 25 23 25 25 25 25 25 25 25 25 25 25 25 25 25 25 25 25 25 Most Carried 25 | 7 20 25 25 25 25 25 25 25 25 25 25 25 25 25 25 25 25 25 21 25 25 25 Average Carried 23 | 4 17 22 24 24 22 24 24 24 25 24 24 25 25 24 24 21 22 24 15 21 24 24 Final Capacity 25 | 8 20 25 25 25 25 25 25 25 25 25 25 25 25 25 25 25 25 25 25 25 25 25 Final Carried 25 | 7 20 25 25 25 25 25 25 25 25 25 25 25 25 25 22 25 25 22 14 24 24 22 Class Distribution -------------------- 25% | Scavenger-Gunner 16% | Mutant 16% | Gunner 16% | Scavenger-Tank 6% | Scavenger-Skirmisher 5% | Tank 5% | Scavenger-Mutant Dominant Class ---------------- Mutant | -10/Materials Gunner | -9/Materials Gunner | -9/Storage Tank | -9/Recycling Gunner | -9/Scraptown Tank | -6/Factory Scavenger-Skirmisher | -6/Lower Caves Scavenger-Gunner | -6/Lower Caves Scavenger-Gunner | -6/Data Miner Scavenger-Gunner | -5/Proximity Caves Scavenger-Gunner | -5/Factory Scavenger-Tank | -5/Upper Caves Scavenger-Tank | -5/Upper Caves Scavenger-Mutant | -5/Zhirov Scavenger-Tank | -4/Proximity Caves Scavenger-Gunner | -4/Factory Scavenger-Tank | -4/Upper Caves Scavenger-Tank | -4/Warlord Scavenger-Scrapper | -3/Proximity Caves Scavenger-Gunner | -3/Research Scavenger-Mutant | -3/Quarantine Alien-Mutant | -3/Section 7 Resources | -11 -10 -9 -9 -9 -9 -6 -6 -6 -6 -5 -5 -5 -5 -5 -4 -4 -4 -4 -3 -3 -3 -3 ----------- Run | Yrd Mat Mat Sto Rec Scr Fac Low Low Dat Pro Fac Upp Upp Zhi Pro Fac Upp War Pro Res Qua Sec Matter Collected 17303 | 300 925 724 737 402 319 1675 140 819 . 601 1879 209 66 165 1099 3059 247 667 249 1001 1062 958 Remotely 3955 | . . . 109 . . 318 . 55 . 77 297 134 . . 188 1815 . 180 . 319 378 85 Salvage Created 18693 | 86 852 681 891 480 . 1453 . 765 . 507 2263 136 208 219 732 3378 307 1236 271 1048 1230 1950 Parts 885 | 9 55 52 45 27 . 47 . 32 . 34 85 8 7 3 23 191 7 32 10 63 73 82 Haulers Intercepted 12 | . 2 3 4 . . 2 . . . . 1 . . . . . . . . . . . Recyclers Shooed 22 | . . 3 1 2 . 3 . . . . 7 . . . . 4 . . . 2 . . Parts Field Recycled . | . . . . . . . . . . . . . . . . . . . . . . . Retrieved Matter . | . . . . . . . . . . . . . . . . . . . . . . . Parts Self-Destructed 106 | . . . . . . . 9 36 . 17 . 3 4 2 22 . 4 . 9 . . . Prevented 22 | . . . . . . . . . . 17 . . 5 . . . . . . . . . Kills | -11 -10 -9 -9 -9 -9 -6 -6 -6 -6 -5 -5 -5 -5 -5 -4 -4 -4 -4 -3 -3 -3 -3 ------- Run | Yrd Mat Mat Sto Rec Scr Fac Low Low Dat Pro Fac Upp Upp Zhi Pro Fac Upp War Pro Res Qua Sec Combat Hostiles Destroyed 285 | . 16 9 16 3 . 12 . 13 . 17 23 5 3 . 18 41 7 38 5 12 18 29 Melee 4 | . . . . . . . . . . . . . . . . . . . . . 4 . Guns 132 | . 16 9 16 3 . 8 . 8 . 2 17 . 2 . 3 33 1 1 4 6 3 . Cannons 43 | . . . . . . . . 2 . 1 4 . 1 . 5 1 2 . . 1 9 17 AOE 87 | . . . . . . 4 . 3 . 10 1 5 . . 9 7 3 37 . 5 . 3 Classes Destroyed 25 | 2 5 2 1 1 . 2 . 3 . . . . . . 2 1 . 3 . . 1 2 Worker 18 | . 3 2 . . . 2 . . . . 3 . . . . 6 . . . . . 2 Builder 17 | . . . . 1 . . . . . . 3 . . . . 11 . . . 2 . . Tunneler 6 | 2 1 . . . . 1 . . . . 1 . . . . . . . . 1 . . Hauler 12 | . 2 3 4 . . 2 . . . . 1 . . . . . . . . . . . Recycler 22 | 1 1 1 . 5 . 5 . . . . 4 . . . . 2 . . . 3 . . Minesweeper 2 | . . . . . . . . 1 . . . . . . . . 1 . . . . . Mechanic 2 | . . . . . . . . . . . . . . . . 1 . 1 . . . . Operator 7 | . . 3 . . . . . . . . 1 . . . . . . . . . 3 . Watcher 11 | . 3 2 1 . . 2 . . . . . . . . . . . . . . 3 . Swarmer 65 | . 3 . . . . 3 . . . 13 . 5 2 . 13 3 4 2 2 5 3 7 Cutter 1 | . . . . . . . . . . . . . . . . . . . . . . 1 Grunt 93 | . 13 2 5 . . 5 . 5 . . 9 . 1 . 1 28 . 17 . . 4 3 Brawler 13 | . . . . . . 1 . . . . 4 . . . . 1 . 7 . . . . Duelist 10 | . . . 2 . . 1 . 2 . . . . . . . 3 . 2 . . . . Protector 4 | . . . . . . . . . . . . . . . 1 . . 3 . . . . Sentry 29 | . . 7 9 3 . 1 . 1 . . . . . . 2 1 1 . 1 . . 3 Demolisher 1 | . . . . . . . . . . . . . . . 1 . . . . . . . Specialist 4 | . . . . . . . . . . . . . . . . . . 2 . . . 2 Hunter 17 | . . . . . . . . 1 . 4 4 . . . . 1 2 1 . 2 2 . Programmer 35 | . . . . . . 1 . 1 . . 6 . . . . 4 . . 2 5 8 8 Heavy 2 | . . . . . . . . . . . . . . . . . . . . . . 2 Behemoth 2 | . . . . . . . . . . . . . . . . . . 1 . . . 1 S7 Guard 2 | . . . . . . . . . . . . . . . . . . . . . . 2 Executioner 3 | . . . . . . . . . . . . . . . . . . 3 . . . . Fortress 1 | . . . . . . . . . . . . . . . . . . . . . 1 . Scrapoid 1 | . . . . . . . . 1 . . . . . . . . . . . . . . Decomposer 1 | . . . . . . . . . . . . . 1 . . . . . . . . . Thug 3 | . . . . . . . . 2 . . . . . . . . . 1 . . . . Butcher 3 | . . . . . . . . 1 . . . . . . . . . 2 . . . . Bouncer 1 | . . . . . . . . . . . . . . . . . . 1 . . . . Commander 1 | . . . . . . . . . . . . . . . . . . 1 . . . . Best Kill Streak 12 | 2 3 5 3 7 . 8 . 4 . 5 12 5 3 . 5 9 4 11 3 6 5 5 Combat Bots Only 10 | . 3 2 3 3 . 6 . 4 . 5 9 5 3 . 5 6 4 10 3 5 5 5 Max Kills in Single Turn 9 | 1 2 1 1 1 . 2 . 2 . 4 2 3 1 . 5 4 2 9 1 3 1 2 Gunslinging 1 | . . . . . . . . . . . 1 . . . . . . . . . . . Exploded 7 | . . . . . . 2 . 2 . 4 1 3 . . 5 2 2 7 . 3 . 2 Melee 1 | . . . . . . . . . . . . . . . . . . . . . 1 . Uniques/NPCs Destroyed . | . . . . . . . . . . . . . . . . . . . . . . . Combat | -11 -10 -9 -9 -9 -9 -6 -6 -6 -6 -5 -5 -5 -5 -5 -4 -4 -4 -4 -3 -3 -3 -3 -------- Run | Yrd Mat Mat Sto Rec Scr Fac Low Low Dat Pro Fac Upp Upp Zhi Pro Fac Upp War Pro Res Qua Sec Hostile Shots Fired 1643 | . 79 30 38 14 . 76 3 46 . 99 135 18 43 . 94 303 65 110 29 51 194 216 Missed 409 | . 14 4 7 3 . 22 1 10 . 34 32 7 15 . 23 73 21 47 8 9 37 42 Damage Taken 26654 | . 747 361 475 168 . 1087 39 578 . 1022 1917 143 436 . 1118 4673 589 1917 486 942 4164 5792 Core 2671 | . 156 45 61 36 . 9 19 76 . 79 130 . . . 36 454 102 242 . 44 344 838 Absorbed by Shields 1691 | . . . . . . 96 . 124 . 118 199 25 125 . 258 140 172 434 . . . . Reduced by Siege Mode 1251 | . . . . . . . . . . . . . . . 35 . . . . 82 662 472 Redirected to Core 399 | . . . . . . . . . . . . . . . . . . . . . 189 210 Redirected to Shielding 166 | . . . . . . . . . . . . . . . . 166 . . . . . . Regen/Repaired (Parts) 2030 | . . 189 29 . . 59 20 9 . 65 27 10 . 20 48 116 10 12 . 108 525 783 Core Remaining (%) 64 | 100 37 . . . 64 . . . . 78 . . . . 83 . . . 23 . . . Volleys Fired 1035 | 6 79 37 39 20 . 53 1 38 . 32 85 9 18 12 53 138 18 40 15 24 149 169 Largest 4 | 2 2 3 3 3 . 4 4 4 . 4 4 1 4 1 4 4 4 4 4 4 4 1 Hottest 319 | 60 46 69 69 61 . 149 97 170 . 170 174 85 174 28 169 257 278 319 248 273 194 300 Shots Fired 2234 | 10 158 106 113 61 . 188 4 119 . 53 256 10 39 12 118 380 44 61 54 90 188 170 Gun 1616 | 10 158 106 113 61 . 180 4 95 . 25 212 1 21 12 65 331 29 29 40 76 48 . Cannon 525 | . . . . . . . . 16 . 23 38 7 18 . 47 30 13 . 14 12 140 167 Launcher 64 | . . . . . . 6 . 8 . 5 . 2 . . 6 17 2 13 . 2 . 3 Special 29 | . . . . . . 2 . . . . 6 . . . . 2 . 19 . . . . Kinetic 1500 | 8 158 106 113 61 . 177 4 95 . 23 212 1 21 12 65 281 8 6 31 70 48 . Thermal 528 | . . . . . . 3 . 16 . 5 19 7 18 . 47 80 34 23 23 12 119 122 Explosive 64 | . . . . . . 6 . 8 . 5 . 2 . . 6 17 2 13 . 2 . 3 Electromagnetic 113 | 2 . . . . . . . . . 20 19 . . . . . . . . 6 21 45 Entropic 10 | . . . . . . . . . . . . . . . . . . 10 . . . . Robot Hit Streak 69 | 7 14 14 15 7 . 14 2 8 . 9 13 6 3 9 30 27 7 18 6 31 69 22 Robot Miss Streak 6 | 1 6 4 3 5 . 6 2 5 . 2 3 1 2 1 1 4 3 1 3 2 3 4 Penetration Max 1 | . . . . . . . . . . . 1 . 1 1 1 1 . . . 1 . 1 Secondary Targets 23 | . . 1 1 . . 1 . 2 . 1 6 . . . . 9 . 1 . 1 . . Max Gunslinging Chain 1 | . . 1 1 . . 1 . 1 . 1 1 . . . . 1 . 1 . 1 . . Capacitor 276 | . . . . . . . . . . . . . . . . . . . . . 119 157 Shots Hit Robots 1466 | 8 107 75 82 48 2 123 2 70 . 22 162 4 16 10 93 239 19 44 26 57 146 111 Core Hits 841 | 5 46 38 46 21 . 78 1 47 . 20 70 7 8 3 47 149 9 112 7 32 49 46 Critical Kills 13 | . . 1 . . . . . 1 . . . . . . 1 3 1 . . 1 3 2 Critical Parts Destroyed 21 | . . 1 . . . 2 . 2 . 2 2 . . . 1 7 . . 1 1 1 1 Critical Strikes 42 | . . 2 . . . 2 . 3 . 2 2 . . . 2 12 2 3 1 2 5 4 Burn 4 | . . . . . . . . . . . . . . . . 2 1 1 . . . . Meltdown 6 | . . . . . . . . . . . . . . . 1 . 1 . . . 2 2 Destroy 28 | . . 2 . . . 2 . 3 . 2 2 . . . 1 10 . . 1 2 2 1 Corrupt 1 | . . . . . . . . . . . . . . . . . . . . . . 1 Sever 3 | . . . . . . . . . . . . . . . . . . 2 . . 1 . Melee Attacks 25 | . . . . . 2 . . 3 . . . . . . . . . . . . 19 1 Kinetic 1 | . . . . . . . . . . . . . . . . . . . . . . 1 Impact . | . . . . . . . . . . . . . . . . . . . . . . . Slashing 19 | . . . . . . . . . . . . . . . . . . . . . 19 . Piercing . | . . . . . . . . . . . . . . . . . . . . . . . Sneak Attacks 5 | . . . . . 2 . . 3 . . . . . . . . . . . . . . Combat Hostiles . | . . . . . . . . . . . . . . . . . . . . . . . Follow-up Attacks . | . . . . . . . . . . . . . . . . . . . . . . . Damage Inflicted 57231 | 122 1602 1252 1502 845 . 2384 23 1951 . 1303 4455 627 440 252 3324 9441 867 14916 777 1979 3818 5351 Guns 22367 | 92 1602 1252 1502 845 . 1834 23 1021 . 147 3201 . 191 252 1035 5866 339 613 631 1471 450 . Cannons 11261 | . . . . . . . . 198 . 491 896 123 249 . 1021 335 203 . 146 224 2491 4884 Explosions 22273 | 30 . . . . . 550 . 732 . 665 358 504 . . 1268 3236 325 13854 . 284 . 467 Melee 877 | . . . . . . . . . . . . . . . . . . . . . 877 . Ramming 4 | . . . . . . . . . . . . . . . . 4 . . . . . . Kinetic 20467 | 68 1602 1252 1502 845 . 1812 23 1021 . 122 3201 . 191 252 1035 5099 46 92 500 1354 450 . Thermal 10863 | 30 . . . . . 22 . 198 . 56 613 123 249 . 1021 1102 496 521 277 224 2023 3908 Explosive 16043 | . . . . . . 550 . 732 . 665 149 504 . . 1268 3236 325 7863 . 284 . 467 Electromagnetic 2537 | 24 . . . . . . . . . 460 492 . . . . . . . . 117 468 976 Impact . | . . . . . . . . . . . . . . . . . . . . . . . Slashing 1326 | . . . . . . . . . . . . . . . . . . 449 . . 877 . Piercing . | . . . . . . . . . . . . . . . . . . . . . . . Entropic 5991 | . . . . . . . . . . . . . . . . . . 5991 . . . . Highest Corruption 42 | . . . 3 3 . . . . . 42 10 6 6 6 17 36 36 36 12 10 17 5 Average Corruption 12 | . . . 2 3 . . . . . 24 7 6 6 6 8 25 36 10 7 6 14 3 Corruption Purged 5 | . . . . . . . . . . . 5 . . . . . . . . . . . Corruption Blocked . | . . . . . . . . . . . . . . . . . . . . . . . Effects 440 | . . . 13 22 . . . . . 41 24 23 24 11 41 102 31 2 17 6 68 15 Message Errors 102 | . . . 4 5 . . . . . 7 2 4 9 3 11 25 10 1 4 1 14 2 Matter Fused 99 | . . . 3 7 . . . . . 8 4 1 6 1 8 17 8 1 4 2 25 4 Heat Flow Errors 50 | . . . . 4 . . . . . 7 5 1 4 4 3 10 . . . . 9 3 Energy Discharges 57 | . . . 2 4 . . . . . 8 3 8 2 1 4 12 3 . 1 1 5 3 Parts Rejected 5 | . . . . . . . . . . . . . . . 1 1 1 . . . 2 . Parts Fused 6 | . . . 1 . . . . . . 1 1 . . . . 2 . . . . 1 . Data Loss (minor) 46 | . . . 1 1 . . . . . 6 4 4 2 1 5 10 . . 5 1 4 2 Data Loss (major) 21 | . . . . . . . . . . . 2 3 1 1 3 4 1 . 1 1 4 . Misfires 19 | . . . 1 1 . . . . . 2 2 1 . . . 5 3 . . . 3 1 Alerts 8 | . . . . . . . . . . . 1 1 . . 2 1 2 . 1 . . . Misdirections 2 | . . . . . . . . . . . . . . . . 2 . . . . . . Weapon Failures 25 | . . . 1 . . . . . . 2 . . . . 4 13 3 . 1 . 1 . Overload Shots . | . . . . . . . . . . . . . . . . . . . . . . . Overflow Damage 1258 | . . . . . . . . . . 5 51 17 42 . 122 209 13 315 . . 259 225 Projectiles 536 | . . . . . . . . . . 3 51 . 42 . 22 . 13 54 . . 126 225 Explosions 589 | . . . . . . . . . . 2 . 17 . . 100 209 . 261 . . . . Melee 133 | . . . . . . . . . . . . . . . . . . . . . 133 . Knockbacks . | . . . . . . . . . . . . . . . . . . . . . . . Impact . | . . . . . . . . . . . . . . . . . . . . . . . Kinetic . | . . . . . . . . . . . . . . . . . . . . . . . Secondary . | . . . . . . . . . . . . . . . . . . . . . . . Self-Inflicted Damage 346 | . . . . . . 2 . 9 . 43 . . . . . 100 . 132 . . . 60 Shots 8 | . . . . . . 1 . 1 . 1 . . . . . 3 . 1 . . . 1 Rammed 1 | . . . . . . . . . . . . . . . . 1 . . . . . . Targets Rammed 1 | . . . . . . . . . . . . . . . . 1 . . . . . . Kicked . | . . . . . . . . . . . . . . . . . . . . . . . Crushed . | . . . . . . . . . . . . . . . . . . . . . . . Highest Temperature 516 | . 12 15 42 278 . 188 30 266 . 272 267 152 222 219 194 236 193 333 199 184 516 300 Average Temperature 84 | . 7 4 11 88 . 44 17 74 . 88 88 99 61 83 98 72 78 144 119 73 96 101 Received Heat Transfer 3753 | . 369 156 129 54 . 299 . 151 . . 258 . 119 . 26 917 4 62 9 . 701 499 Effects 4 | . . . . 1 . . . 1 . . 1 . . . . . . . . . 1 . Shutdowns 1 | . . . . . . . . . . . . . . . . . . . . . 1 . Energy Bleed 2 | . . . . . . . . 1 . . 1 . . . . . . . . . . . Interference 1 | . . . . 1 . . . . . . . . . . . . . . . . . . Siege Activations 22 | . . . . . . . . . . . . . . . 3 . . . . 3 8 8 Total Turns 394 | . . . . . . . . . . . . . . . 49 . . . . 42 191 112 Longest Duration 82 | . . . . . . . . . . . . . . . 19 . . . . 21 82 57 Robots Corrupted 9 | . . . . . . . . . . 4 1 . . . . . . . . . . 4 Combat Hostiles 9 | . . . . . . . . . . 4 1 . . . . . . . . . . 4 Parts Fried 17 | . . . . . . . . . . 3 3 . . . . . . . . . 5 6 Impact Corruptions . | . . . . . . . . . . . . . . . . . . . . . . . Robots Melted 10 | . . . . . . . . . . . . . . . 1 . 2 . 1 . 2 4 Combat Hostiles 9 | . . . . . . . . . . . . . . . 1 . 1 . 1 . 2 4 Parts Melted 52 | . . . . . . . . . . . 2 . 1 . 2 8 7 . . 1 9 22 Heat Transferred 12713 | 50 . . . . . 50 . 300 . 87 544 148 296 . 1185 2223 1050 853 385 287 2258 2997 Parts Sabotaged 9 | . . . . . . . . . . . . . . . . 2 . 7 . . . . Parts Stolen . | . . . . . . . . . . . . . . . . . . . . . . . Parts Stripped 8 | . . . . . . . . . . . . . . . . . . . . . . 8 Power Chain Reactions 2 | 1 . . . . . . . . . . 1 . . . . . . . . . . . Alert | -11 -10 -9 -9 -9 -9 -6 -6 -6 -6 -5 -5 -5 -5 -5 -4 -4 -4 -4 -3 -3 -3 -3 ------- Run | Yrd Mat Mat Sto Rec Scr Fac Low Low Dat Pro Fac Upp Upp Zhi Pro Fac Upp War Pro Res Qua Sec Peak Influence 1592 | 15 214 222 213 208 . 420 . . . . 869 . . . . 1592 . . . 318 412 711 Initial 85 | . 9 32 29 82 . . . . . . . . . . . 14 . . . . 85 22 Average 233 | 6 110 43 100 71 . 138 . . . . 384 . . . . 789 . . . 104 153 296 Maximum Alert Level 4 | . 1 1 1 1 . 2 . . . . 3 . . . . 4 . . . 1 2 3 Low Security (%) 68 | 100 97 97 88 81 . 71 . . . . 46 . . . . 20 . . . 86 67 33 Level 1 13 | . 2 2 11 18 . 24 . . . . 2 . . . . 7 . . . 13 27 41 Level 2 7 | . . . . . . 4 . . . . 24 . . . . 13 . . . . 5 24 Level 3 6 | . . . . . . . . . . . 25 . . . . 30 . . . . . . Level 4 3 | . . . . . . . . . . . . . . . . 27 . . . . . . Level 5 . | . . . . . . . . . . . . . . . . . . . . . . . High Security . | . . . . . . . . . . . . . . . . . . . . . . . Max Security . | . . . . . . . . . . . . . . . . . . . . . . . Squads Dispatched 61 | . 2 3 2 . . 10 . 1 . . 9 . 1 . . 17 . . . 2 7 7 Investigation 13 | . 2 1 1 . . 4 . . . . 2 . . . . 2 . . . . 1 . Extermination 16 | . . . . . . 3 . . . . 3 . . . . 3 . . . 1 4 2 Reinforcement 23 | . . 2 1 . . 3 . . . . 3 . . . . 6 . . . 1 2 5 Assault 9 | . . . . . . . . 1 . . 1 . 1 . . 6 . . . . . . Garrison . | . . . . . . . . . . . . . . . . . . . . . . . Intercept . | . . . . . . . . . . . . . . . . . . . . . . . Searches Triggered . | . . . . . . . . . . . . . . . . . . . . . . . Data Miner Redirects 4 | . . . . . . . . . . . 1 . . . . 3 . . . . . . Construction Impeded 4 | . . . 1 . . . . . . . . . . . . 3 . . . . . . Haulers Reinforced 3 | . . . . . . 1 . . . . 1 . . . . 1 . . . . . . Active Scanning Responses . | . . . . . . . . . . . . . . . . . . . . . . . Cargo Convoy Interrupts 1 | . . . . . . 1 . . . . . . . . . . . . . . . . Stealth | -11 -10 -9 -9 -9 -9 -6 -6 -6 -6 -5 -5 -5 -5 -5 -4 -4 -4 -4 -3 -3 -3 -3 --------- Run | Yrd Mat Mat Sto Rec Scr Fac Low Low Dat Pro Fac Upp Upp Zhi Pro Fac Upp War Pro Res Qua Sec Distress Signals 28 | . 1 . 1 . . . . . . . 1 . . . 17 7 . . . . 1 . Communications Jammed 52 | . . . . . . . . . . . . . . . . . . . . 1 2 49 Distress Signals 32 | . . . . . . . . . . . . . . . . . . . . 1 . 31 Times Spotted 502 | . 30 14 17 3 . 30 2 16 . 17 35 4 11 . 19 81 7 130 5 10 26 45 Peak Tracking Total 19 | . 4 5 4 3 . 6 1 5 . 5 6 5 8 . 5 10 4 19 3 5 4 12 Tactical Retreats 19 | . 3 1 . . . 1 . 1 . . 2 . . . . 6 . 1 . . 1 3 Traps | -11 -10 -9 -9 -9 -9 -6 -6 -6 -6 -5 -5 -5 -5 -5 -4 -4 -4 -4 -3 -3 -3 -3 ------- Run | Yrd Mat Mat Sto Rec Scr Fac Low Low Dat Pro Fac Upp Upp Zhi Pro Fac Upp War Pro Res Qua Sec Traps Triggered 11 | . . . 3 . . 1 . . . . 1 . . . . 5 . . . . 1 . Indirectly . | . . . . . . . . . . . . . . . . . . . . . . . Trap Hack Attempts . | . . . . . . . . . . . . . . . . . . . . . . . Triggered . | . . . . . . . . . . . . . . . . . . . . . . . Disarmed . | . . . . . . . . . . . . . . . . . . . . . . . Reprogrammed . | . . . . . . . . . . . . . . . . . . . . . . . Reused . | . . . . . . . . . . . . . . . . . . . . . . . Traps Extracted . | . . . . . . . . . . . . . . . . . . . . . . . Installed . | . . . . . . . . . . . . . . . . . . . . . . . Triggered 15 | . . . . . . 2 . . . . . . 2 . . . . 10 . . 1 . Machines | -11 -10 -9 -9 -9 -9 -6 -6 -6 -6 -5 -5 -5 -5 -5 -4 -4 -4 -4 -3 -3 -3 -3 ---------- Run | Yrd Mat Mat Sto Rec Scr Fac Low Low Dat Pro Fac Upp Upp Zhi Pro Fac Upp War Pro Res Qua Sec Machines Disabled 51 | . 1 . 2 . . 2 . 1 . . 13 . . . . 11 . 2 . . 10 9 Max in Single Turn 5 | . 1 . 1 . . 1 . . . . 5 . . . . 4 . 1 . . 1 1 Garrison Access 1 | . . . . . . . . . . . . . . . . 1 . . . . . . Machines Repaired . | . . . . . . . . . . . . . . . . . . . . . . . Machines Dismantled . | . . . . . . . . . . . . . . . . . . . . . . . Machines Sabotaged . | . . . . . . . . . . . . . . . . . . . . . . . Overloaded Fab Kills . | . . . . . . . . . . . . . . . . . . . . . . . Hacking | -11 -10 -9 -9 -9 -9 -6 -6 -6 -6 -5 -5 -5 -5 -5 -4 -4 -4 -4 -3 -3 -3 -3 --------- Run | Yrd Mat Mat Sto Rec Scr Fac Low Low Dat Pro Fac Upp Upp Zhi Pro Fac Upp War Pro Res Qua Sec Machines Accessed 91 | . 8 9 7 9 7 10 1 1 4 1 5 . . 4 . 8 . 2 . . 10 5 Terminals 46 | . 6 6 5 6 . 5 . . . 1 3 . . . . 4 . . . . 6 4 Fabricators 1 | . . . . . . 1 . . . . . . . . . . . . . . . . Repair Stations 10 | . 1 2 2 . . 1 . . . . . . . . . 1 . . . . 2 1 Recycling Units 11 | . 1 . . 3 . 3 . . . . 2 . . . . 2 . . . . . . Scanalyzers 2 | . . 1 . . . . . . . . . . . . . . . . . . 1 . Garrison Access 2 | . . . . . . . . . . . . . . . . 1 . . . . 1 . Total Hacks 270 | . 26 36 16 24 40 22 1 1 32 1 8 . . 17 . 20 . 3 . . 17 6 Successful 173 | . 14 27 6 10 40 8 1 1 32 1 3 . . 17 . 6 . 3 . . 3 1 Failed 96 | . 11 9 10 14 . 14 . . . . 5 . . . . 14 . . . . 14 5 Catastrophic 24 | . 2 4 2 4 . 5 . . . . 2 . . . . 3 . . . . 1 1 Database Lockouts 1 | . 1 . . . . . . . . . . . . . . . . . . . . . Manual 70 | . 18 8 4 12 . 9 . . . . 4 . . . . 5 . . . . 7 3 Terminals 116 | . 23 18 13 16 . 14 . . . 1 6 . . . . 10 . . . . 11 4 Fabricators 3 | . . . . . . 3 . . . . . . . . . . . . . . . . Repair Stations 23 | . 1 8 3 . . 2 . . . . . . . . . 4 . . . . 3 2 Recycling Units 20 | . 2 . . 8 . 3 . . . . 2 . . . . 5 . . . . . . Scanalyzers 11 | . . 10 . . . . . . . . . . . . . . . . . . 1 . Garrison Access 3 | . . . . . . . . . . . . . . . . 1 . . . . 2 . Terminal Hacks 123 | . 10 7 3 1 40 2 1 1 32 1 1 . . 17 . 2 . 3 . . 2 . Record 49 | . . . . . 30 . . . 11 1 . . . 5 . . . 2 . . . . Part Schematic 19 | . . 1 . . . 1 . . 13 . . . . 4 . . . . . . . . Robot Schematic 6 | . 1 . . . . . . . 5 . . . . . . . . . . . . . Robot Analysis 15 | . 2 . . . 9 . . . . . . . . 4 . . . . . . . . Prototype ID Bank 9 | . . 1 . 1 . . . . 3 . . . . 4 . . . . . . . . Open Door 4 | . . . 1 . . . 1 1 . . . . . . . . . 1 . . . . Level Access Points 1 | . . 1 . . . . . . . . . . . . . . . . . . . . Branch Access Points 3 | . 1 1 . . . . . . . . . . . . . 1 . . . . . . Emergency Access Points 1 | . 1 . . . . . . . . . . . . . . . . . . . . . Recycling Unit Index 1 | . 1 . . . . . . . . . . . . . . . . . . . . . Alert Level 1 | . . 1 . . . . . . . . . . . . . . . . . . . . Unreport Threat 2 | . . . . . . . . . . . . . . . . . . . . . 2 . Locate Traps 7 | . 2 . 2 . . 1 . . . . 1 . . . . 1 . . . . . . Hauler Manifests 2 | . 1 1 . . . . . . . . . . . . . . . . . . . . Registered Components 1 | . . 1 . . . . . . . . . . . . . . . . . . . . Zone Layout 1 | . 1 . . . . . . . . . . . . . . . . . . . . . Derelict Proto ID Bank 1 | . . . . . 1 . . . . . . . . . . . . . . . . . Fabricator Hacks . | . . . . . . . . . . . . . . . . . . . . . . . Repair Station Hacks 15 | . . 8 2 . . 2 . . . . . . . . . 1 . . . . 1 1 Scan Component 9 | . . 4 1 . . 1 . . . . . . . . . 1 . . . . 1 1 Repair 6 | . . 4 1 . . 1 . . . . . . . . . . . . . . . . Recycling Unit Hacks 4 | . 1 . . 3 . . . . . . . . . . . . . . . . . . Retrieve Components 4 | . 1 . . 3 . . . . . . . . . . . . . . . . . . Scanalyzer 10 | . . 10 . . . . . . . . . . . . . . . . . . . . Insert Component 4 | . . 4 . . . . . . . . . . . . . . . . . . . . Analyze 6 | . . 6 . . . . . . . . . . . . . . . . . . . . Garrison Access Hacks 1 | . . . . . . . . . . . . . . . . 1 . . . . . . Seal Access 1 | . . . . . . . . . . . . . . . . 1 . . . . . . Unauthorized Hacks 20 | . 3 2 1 6 . 4 . . . . 2 . . . . 2 . . . . . . Terminals 9 | . 2 2 1 3 . 1 . . . . . . . . . . . . . . . . Botnet 9 | . 2 2 1 3 . 1 . . . . . . . . . . . . . . . . Fabricators . | . . . . . . . . . . . . . . . . . . . . . . . Repair Stations 7 | . . . . . . 3 . . . . 2 . . . . 2 . . . . . . Recycling Units 4 | . 1 . . 3 . . . . . . . . . . . . . . . . . . Tunnel 4 | . 1 . . 3 . . . . . . . . . . . . . . . . . . Scrapoids 7 | . . . . . . 3 . . . . 2 . . . . 2 . . . . . . Scanalyzers . | . . . . . . . . . . . . . . . . . . . . . . . Garrison Access . | . . . . . . . . . . . . . . . . . . . . . . . Data Cores Recovered 1 | . . . . . . . . . . . . . . . . . . . . . 1 . Used . | . . . . . . . . . . . . . . . . . . . . . . . Hacking Detections 60 | . 8 8 6 7 . 7 . . . . 3 . . . . 6 . . . . 10 5 Full Trace Events 6 | . 2 1 1 . . 1 . . . . . . . . . . . . . . 1 . Feedback Events 1 | . . . 1 . . . . . . . . . . . . . . . . . . . Corruption 1 | . . . 1 . . . . . . . . . . . . . . . . . . . Feedback Blocked . | . . . . . . . . . . . . . . . . . . . . . . . Robot Schematics Acquired 6 | . 1 . . . . . . . 5 . . . . . . . . . . . . . Robots Built . | . . . . . . . . . . . . . . . . . . . . . . . Authchips . | . . . . . . . . . . . . . . . . . . . . . . . Time . | . . . . . . . . . . . . . . . . . . . . . . . Total Robot Build Rating . | . . . . . . . . . . . . . . . . . . . . . . . Part Schematics Acquired 23 | . . 5 . . . 1 . . 13 . . . . 4 . . . . . . . . Parts Built . | . . . . . . . . . . . . . . . . . . . . . . . Authchips . | . . . . . . . . . . . . . . . . . . . . . . . Time . | . . . . . . . . . . . . . . . . . . . . . . . Total Part Build Rating . | . . . . . . . . . . . . . . . . . . . . . . . Parts Repaired 6 | . . 4 1 . . 1 . . . . . . . . . . . . . . . . Time 168 | . . 104 32 . . 32 . . . . . . . . . . . . . . . . Parts Recycled . | . . . . . . . . . . . . . . . . . . . . . . . Recycled Matter . | . . . . . . . . . . . . . . . . . . . . . . . Retrieved Matter . | . . . . . . . . . . . . . . . . . . . . . . . Retrieved Components 26 | . 9 . . 17 . . . . . . . . . . . . . . . . . . Parts Scanalyzed 4 | . . 4 . . . . . . . . . . . . . . . . . . . . Part Schematics Acquired 4 | . . 4 . . . . . . . . . . . . . . . . . . . . Parts Damaged . | . . . . . . . . . . . . . . . . . . . . . . . Bothacking | -11 -10 -9 -9 -9 -9 -6 -6 -6 -6 -5 -5 -5 -5 -5 -4 -4 -4 -4 -3 -3 -3 -3 ------------ Run | Yrd Mat Mat Sto Rec Scr Fac Low Low Dat Pro Fac Upp Upp Zhi Pro Fac Upp War Pro Res Qua Sec Used RIF Installer . | . . . . . . . . . . . . . . . . . . . . . . . Robots Hacked 11 | . . . . . 2 . . . . . 4 . . . . 2 . 3 . . . . Non-combat 7 | . . . . . . . . . . . 4 . . . . 2 . 1 . . . . Combat 4 | . . . . . 2 . . . . . . . . . . . . 2 . . . . Robot Hacks Applied 11 | . . . . . 2 . . . . . 4 . . . . 2 . 3 . . . . parse_system 5 | . . . . . 2 . . . . . . . . . . . . 3 . . . . find_chute 3 | . . . . . . . . . . . 2 . . . . 1 . . . . . . find_recycling 3 | . . . . . . . . . . . 2 . . . . 1 . . . . . . Relay Couplers Released . | . . . . . . . . . . . . . . . . . . . . . . . Fabnet Peak Effective % . | . . . . . . . . . . . . . . . . . . . . . . . Robots Rewired 6 | . . . . . . . . 1 . . . . . . . . . 5 . . . . Allies Hacked 1 | . . . . . . . . . . . . . . . . 1 . . . . . . Hacks Repelled . | . . . . . . . . . . . . . . . . . . . . . . . Allies | -11 -10 -9 -9 -9 -9 -6 -6 -6 -6 -5 -5 -5 -5 -5 -4 -4 -4 -4 -3 -3 -3 -3 -------- Run | Yrd Mat Mat Sto Rec Scr Fac Low Low Dat Pro Fac Upp Upp Zhi Pro Fac Upp War Pro Res Qua Sec Total Allies 41 | . . . . . . 15 . 1 . . 10 . . . . 10 . 5 . . . . Largest Group 7 | . . . . . . 7 7 6 . . 5 . . . . 5 . 5 . . . . Highest-Rated Group 284 | . . . . . . 196 196 168 . . 238 . . . . 241 . 284 . . . . Highest-Rated Ally 68 | . . . . . . 31 28 29 . . 50 . . . . 50 . 68 . . . . Total Orders 10 | . . . . . . 2 1 . . . 2 . . . . 3 . 2 . . . . STAY 1 | . . . . . . . . . . . . . . . . . . 1 . . . . FOLLOW 1 | . . . . . . . . . . . . . . . . . . 1 . . . . EXPLORE 8 | . . . . . . 2 1 . . . 2 . . . . 3 . . . . . . Ally Attacks 570 | . . . . . . 113 52 52 . . 109 . . . . 170 . 74 . . . . Total Damage 11810 | . . . . . . 1830 869 642 . . 2588 . . . . 3139 . 2742 . . . . Kills 71 | . . . . . . 12 2 5 . . 17 . . . . 25 . 10 . . . . Allies Corrupted 3 | . . . . . . . . . . . 3 . . . . . . . . . . . Allies Melted 1 | . . . . . . . . . . . . . . . . . . 1 . . . . Intel | -11 -10 -9 -9 -9 -9 -6 -6 -6 -6 -5 -5 -5 -5 -5 -4 -4 -4 -4 -3 -3 -3 -3 ------- Run | Yrd Mat Mat Sto Rec Scr Fac Low Low Dat Pro Fac Upp Upp Zhi Pro Fac Upp War Pro Res Qua Sec Robot Analysis Total 15 | . 2 . . . 9 . . . . . . . . 4 . . . . . . . . Derelict Logs Recovered 16 | . . . . . . . 3 2 . 3 . 2 2 . 3 . 1 . . . . . Drone Launches 8 | . . . . . . 2 1 . . . 2 . . . . 3 . . . . . . Drone Recoveries . | . . . . . . . . . . . . . . . . . . . . . . . Exploration | -11 -10 -9 -9 -9 -9 -6 -6 -6 -6 -5 -5 -5 -5 -5 -4 -4 -4 -4 -3 -3 -3 -3 ------------- Run | Yrd Mat Mat Sto Rec Scr Fac Low Low Dat Pro Fac Upp Upp Zhi Pro Fac Upp War Pro Res Qua Sec Turns Passed 34297 | 138 2010 2329 1576 1234 5643 2045 1471 2068 117 1506 2105 958 879 422 1209 2075 565 1755 605 536 1900 1151 Spaces Moved 16932 | 70 833 845 502 481 2484 1004 912 1243 82 906 949 656 485 277 729 1065 325 1123 385 264 837 475 Core 115 | 9 . . . . 106 . . . . . . . . . . . . . . . . . Treads 5002 | 61 151 136 502 481 2378 100 . . . . . . . . . 3 . . 1 18 711 460 Legs 1 | . 1 . . . . . . . . . . . . . . . . . . . . . Wheels 11799 | . 681 709 . . . 904 912 1243 82 906 949 656 485 277 729 1062 325 1123 384 246 126 . Hover . | . . . . . . . . . . . . . . . . . . . . . . . Flight . | . . . . . . . . . . . . . . . . . . . . . . . Fastest Speed 50 | 50 140 145 240 240 50 130 140 140 140 140 130 130 140 130 130 120 130 110 120 130 130 161 Average Speed 164 | 149 166 192 240 240 222 151 140 140 140 148 143 139 140 130 136 128 139 139 129 138 167 166 Slowest Speed 480 | 160 470 240 240 240 240 240 150 150 150 150 160 140 140 140 140 480 140 150 240 270 176 256 Overloaded Moves . | . . . . . . . . . . . . . . . . . . . . . . . Propulsion Burnouts . | . . . . . . . . . . . . . . . . . . . . . . . Robots Hopped . | . . . . . . . . . . . . . . . . . . . . . . . Cave-ins Triggered 1 | . . . . . . . . . . . . . . . . . . 1 . . . . Teleports 2 | . . . . . . . . . . . . . . . . 1 . . . . . 1 Spacefolds 5 | . . . . . . . . . . . . . . . . . . . . . . 5 Exploration Rate (%) 62 | 4 93 46 67 96 94 27 98 96 69 94 29 85 67 60 66 28 52 84 59 5 83 29 Regions Visited 22 Branch Regions 16 Pre-discovered Areas 18 | . 1 . . 3 4 . 1 1 1 1 . . 1 3 1 . 1 . . . . . Known Exits Taken 13 | . . 1 . . . 1 1 . . 1 1 1 . . 1 1 1 1 1 1 1 . Unknown Exits Taken 9 | 1 1 . 1 1 1 . . 1 1 . . . 1 1 . . . . . . . . Scrap Searched 22 | . . . . . 6 . 3 3 . 2 . 3 1 . 2 . 2 . . . . . Spaces Dug 127 | . . . . . . 8 . 28 . 8 4 1 3 . 2 11 2 39 . . 8 13 Terrain Destroyed 912 | 3 . . 2 3 . 32 . 73 . 44 24 9 13 . 53 203 27 275 37 29 26 59 Melee 2 | . . . . . . . . . . . . . . . . . . . . . 2 . Projectile 257 | . . . 2 3 . . . 9 . 4 14 3 12 . 9 76 9 1 37 10 23 45 AOE 649 | 3 . . . . . 32 . 64 . 40 9 6 . . 44 126 18 274 . 19 . 14 Terrain Rammed . | . . . . . . . . . . . . . . . . . . . . . . . Walls Destroyed . | . . . . . . . . . . . . . . . . . . . . . . . Machines Disabled . | . . . . . . . . . . . . . . . . . . . . . . . Actions | -11 -10 -9 -9 -9 -9 -6 -6 -6 -6 -5 -5 -5 -5 -5 -4 -4 -4 -4 -3 -3 -3 -3 --------- Run | Yrd Mat Mat Sto Rec Scr Fac Low Low Dat Pro Fac Upp Upp Zhi Pro Fac Upp War Pro Res Qua Sec Total 22021 | 90 1308 1462 802 523 2603 1417 1104 1482 83 1011 1527 682 654 335 845 1502 399 1267 464 384 1258 819 Wait 2628 | . 332 518 183 11 42 253 173 150 . 15 350 . 148 1 38 97 25 28 47 33 123 61 Move 16901 | 69 832 844 501 480 2483 1003 911 1242 81 905 948 655 484 276 728 1065 324 1122 384 263 836 465 Hop . | . . . . . . . . . . . . . . . . . . . . . . . Pick Up 286 | 7 26 15 15 1 31 20 4 5 . 8 30 1 . 12 1 35 7 11 2 15 27 13 Fast Attach 169 | 7 . 6 3 . 13 19 3 2 . 3 12 2 . 9 . 26 1 7 1 9 19 27 Attach 125 | . 2 6 . 1 3 5 3 2 . 2 12 . . 4 4 32 6 11 8 2 9 13 Detach 36 | . . 1 . 2 1 2 . . . . 2 . . . 1 5 2 2 1 3 5 9 Swap 433 | 1 19 19 32 3 5 28 1 31 2 33 40 12 4 . 19 59 11 26 4 24 28 32 Drop 351 | . 18 16 25 5 23 34 7 9 . 13 40 3 . 21 1 26 5 20 2 11 43 29 Fire 1035 | 6 79 37 39 20 . 53 1 38 . 32 85 9 18 12 53 138 18 40 15 24 149 169 Melee 25 | . . . . . 2 . . 3 . . . . . . . . . . . . 19 1 Ram . | . . . . . . . . . . . . . . . . . . . . . . . Kick . | . . . . . . . . . . . . . . . . . . . . . . . Crush . | . . . . . . . . . . . . . . . . . . . . . . . Escape Stasis 31 | . . . 4 . . . . . . . 8 . . . . 19 . . . . . . Rewire 1 | . . . . . . . 1 . . . . . . . . . . . . . . . Trap . | . . . . . . . . . . . . . . . . . . . . . . . Miscellaneous . | . . . . . . . . . . . . . . . . . . . . . . . Route ------- -11/Scrapyard -10/Materials (discovered 4 exits: *Mat x2 / *Min x2) -9/Materials (discovered 5 exits: *Mat x3 / Min / *Sto) -9/Storage (discovered 2 exits: *Mat / *Rec) -9/Recycling (discovered 2 exits: [*Fac] / *Scr) -9/Scraptown (discovered 2 exits: *Fac x2) -6/Factory (discovered 6 exits: *Fac x4 / *Low x2) -6/Lower Caves -6/Lower Caves (discovered 2 exits: *Fac / *Dat) -6/Data Miner -5/Proximity Caves -5/Factory -5/Upper Caves -5/Upper Caves (discovered 2 exits: *Fac / *Zhi) -5/Zhirov -4/Proximity Caves -4/Factory (discovered 6 exits: Res / *Upp x2 / Ext x2 / Arm) -4/Upper Caves -4/Warlord -3/Proximity Caves -3/Research (discovered 2 exits: Res / *Qua) -3/Quarantine -3/Section 7 (discovered 1 exit: *Res) History --------- Turn | Location | Event 7 | -11/Scrapyard | Discovered new exit (range 16) 139 | -11/Scrapyard | Entered Materials 300 | -10/Materials | Build established: Mutant 432 | -10/Materials | Identified exit to Mines 880 | -10/Materials | Discovered new exit (range 5) 1058 | -10/Materials | Central database locked down 1348 | -10/Materials | Core integrity fell below 50% 1446 | -10/Materials | Discovered new exit (range 16) 2149 | -10/Materials | Entered another Materials area 2149 | -9/Materials | Evolved 2 slots: Propulsion x1, Weapon x1 2580 | -9/Materials | Repaired Lgt. Treads 2607 | -9/Materials | Repaired Lgt. Treads 2633 | -9/Materials | Repaired Com. Wheel 2671 | -9/Materials | Identified exit to Materials 2750 | -9/Materials | Build established: Scavenger-Gunner 2952 | -9/Materials | Identified exit to Mines 2952 | -9/Materials | Identified exit to Storage 3241 | -9/Materials | Build established: Gunner 4399 | -9/Materials | Repaired Lgt. Treads 4478 | -9/Materials | Entered Storage 5382 | -9/Storage | Repaired Shotgun 5751 | -9/Storage | Discovered exit to Materials (range 16) 6044 | -9/Storage | Used back door to open Recycling access 6044 | -9/Storage | Discovered new exit (range 5) 6054 | -9/Storage | Entered Recycling 6445 | -9/Recycling | Build established: Tank 6742 | -9/Recycling | Scanned before Scraplab entrance 7055 | -9/Recycling | Build established: Mutant 7082 | -9/Recycling | Discovered new exit (range 5) 7264 | -9/Recycling | Entered Scraplab 7286 | -9/Recycling | Discovered new exit (range 2) 7288 | -9/Recycling | Entered Scraptown 7288 | -9/Scraptown | System corruption cleaned by C-Scrubber 7460 | -9/Scraptown | Heard Great Nut preacher, LISTEN AND RECITE! 7585 | -9/Scraptown | Build established: Gunner 7980 | -9/Scraptown | Discovered new exit (range 7) 8230 | -9/Scraptown | Visited Assassins FH 8278 | -9/Scraptown | Visited IN-MT5's Study 8330 | -9/Scraptown | Visited Fellowship of the Rings 8873 | -9/Scraptown | Visited Symbiants 8985 | -9/Scraptown | Visited Spacefarers 9043 | -9/Scraptown | Visited Cave Peace 9139 | -9/Scraptown | Visited Awakened 9256 | -9/Scraptown | Build established: Mutant 9754 | -9/Scraptown | Visited UFD Registry 9754 | -9/Scraptown | Registered with UFD as "Toolbot" 9902 | -9/Scraptown | Visited Science Guys 9988 | -9/Scraptown | Visited Botcube Research 10053 | -9/Scraptown | Visited DA-N13 Charitable Foundation 10067 | -9/Scraptown | Found DCF Scrap (31 items) 10173 | -9/Scraptown | Discovered new exit (range 3) 10365 | -9/Scraptown | Visited Science Testing Area 10540 | -9/Scraptown | Visited Supply Room 10857 | -9/Scraptown | Visited Research Penetration Think Tank 10910 | -9/Scraptown | Visited A0-MCA Data Center 10924 | -9/Scraptown | Given a B+ rating by A0-MCA 10941 | -9/Scraptown | Found A0-MCA's Component Scanner 10989 | -9/Scraptown | Visited Analyses Database 11045 | -9/Scraptown | Visited Scrap Suit Storage 11872 | -9/Scraptown | Build established: Gunner 11903 | -9/Scraptown | Visited Cartography Club 12127 | -9/Scraptown | Found Surveybot 17 Chip 12437 | -9/Scraptown | Learned location of Lower Caves (-7) 12437 | -9/Scraptown | Learned location of Upper Caves (-5) 12437 | -9/Scraptown | Learned location of Cetus (-4) 12437 | -9/Scraptown | Learned 16 Materials zone layouts 12437 | -9/Scraptown | Learned 8 Factory zone layouts 12437 | -9/Scraptown | Learned 16 Factory zone layouts 12437 | -9/Scraptown | Learned 4 Access zone layouts 12437 | -9/Scraptown | Learned 8 Access zone layouts 12437 | -9/Scraptown | Learned 4 Storage zone layouts 12437 | -9/Scraptown | Learned 12 Upper Caves zone layouts 12437 | -9/Scraptown | Learned 16 Upper Caves zone layouts 12437 | -9/Scraptown | Learned 24 Upper Caves zone layouts 12437 | -9/Scraptown | Learned 24 Proximity Caves zone layouts 12437 | -9/Scraptown | Learned location of 1 exit from Research 12437 | -9/Scraptown | Learned location of 2 exits from Proximity Caves 12442 | -9/Scraptown | Found Deep Structural Scanner 12931 | -9/Scraptown | Entered Factory 12931 | -6/Factory | Evolved 6 slots: Utility x5, Weapon x1 12932 | -6/Factory | Identified exit to Factory 12932 | -6/Factory | Identified exit to Lower Caves 13050 | -6/Factory | Scrapoid reinforcements arrived 13136 | -6/Factory | Found Scrap Suit 13205 | -6/Factory | Found Scrap Suit 13432 | -6/Factory | Build established: Tank 14020 | -6/Factory | Build established: Gunner 14055 | -6/Factory | Cargo convoy interrupted 14506 | -6/Factory | Scrapoid reinforcements arrived 14762 | -6/Factory | Found Scrap Suit 14839 | -6/Factory | Scrapoid reinforcements arrived 14863 | -6/Factory | Found Scrap Suit 14945 | -6/Factory | Repaired Rocket Launcher 14976 | -6/Factory | Entered Lower Caves 14976 | -6/Lower Caves | Accompanied by 7 allies 15072 | -6/Lower Caves | Learned Factory emergency access door positions 15135 | -6/Lower Caves | Learned location of Extension (-4) 15305 | -6/Lower Caves | Build established: Scavenger-Skirmisher 15309 | -6/Lower Caves | Spotted B-75 Beast 15325 | -6/Lower Caves | Allies destroyed B-75 Beast 15342 | -6/Lower Caves | Found Scrap Suit 15619 | -6/Lower Caves | Discovered new exit (range 8) 16113 | -6/Lower Caves | Learned Factory emergency access door positions 16233 | -6/Lower Caves | Acquired the password to a Derelict Tinkerer's latest research 16441 | -6/Lower Caves | Identified exit to Lower Caves 16447 | -6/Lower Caves | Entered another Lower Caves area 16447 | -6/Lower Caves | Accompanied by 6 allies 16459 | -6/Lower Caves | Attracted the attention of an 0b10 outpost 16491 | -6/Lower Caves | Lost 4 allies 16581 | -6/Lower Caves | Lost 3 allies 16582 | -6/Lower Caves | Found Scrap Suit 16910 | -6/Lower Caves | Learned Factory trap positions 16918 | -6/Lower Caves | Discovered exit to Factory (range 12) 17040 | -6/Lower Caves | Build established: Scavenger-Gunner 18263 | -6/Lower Caves | Discovered new exit (range 16) 18515 | -6/Lower Caves | Entered Data Miner 18515 | -6/Data Miner | Discovered new exit (range 6) 18542 | -6/Data Miner | Met Data Miner 18573 | -6/Data Miner | Learned location of Section 7 (-3) 18573 | -6/Data Miner | Acquired the access code to Warlord's prototype stash 18594 | -6/Data Miner | Received God Mode back door access code from Data Miner 18632 | -6/Data Miner | Entered Proximity Caves 19277 | -5/Proximity Caves | Learned Factory stockpile data 19354 | -5/Proximity Caves | System corruption reached 10% 19459 | -5/Proximity Caves | Learned Factory stockpile data 19750 | -5/Proximity Caves | Learned location of Warlord (-4) 20131 | -5/Proximity Caves | System corruption reached 30% 20138 | -5/Proximity Caves | Entered Factory 20138 | -5/Factory | Evolved 2 slots: Power x1, Propulsion x1 20139 | -5/Factory | Identified exit to Upper Caves 20140 | -5/Factory | Loaded intel: 86 trap records 20857 | -5/Factory | Scrapoid reinforcements arrived 21103 | -5/Factory | Found Prototype Launcher 21104 | -5/Factory | Identified Mni. Smartbomb Launcher 21112 | -5/Factory | Found Mni. Smartbomb Launcher 21162 | -5/Factory | Found Corrupted Scrap Suit 21176 | -5/Factory | Lost 3 allies 21264 | -5/Factory | Destroyed 9 combat bots 21464 | -5/Factory | System corruption reached 10% 21697 | -5/Factory | Build established: Scavenger-Tank 21938 | -5/Factory | First assault squad dispatched 22050 | -5/Factory | Scrapoid reinforcements arrived 22058 | -5/Factory | Incoming investigation squad redirected 22096 | -5/Factory | Found Scrap Suit 22148 | -5/Factory | Found Scrap Suit 22158 | -5/Factory | Found Scrap Suit 22197 | -5/Factory | Lost 3 allies 22243 | -5/Factory | Entered Upper Caves 22244 | -5/Upper Caves | Identified exit to Upper Caves 22938 | -5/Upper Caves | Learned Factory terminal intel 23201 | -5/Upper Caves | Entered another Upper Caves area 23202 | -5/Upper Caves | Identified exit to Factory 23289 | -5/Upper Caves | Encountered a Warlord checkpoint 23489 | -5/Upper Caves | Learned location of Armory (-4) 23592 | -5/Upper Caves | Learned location of 1 exit from Factory 24029 | -5/Upper Caves | Attracted the attention of an 0b10 outpost 24067 | -5/Upper Caves | Discovered new exit (range 10) 24080 | -5/Upper Caves | Entered Zhirov 24083 | -5/Zhirov | Discovered new exit (range 3) 24107 | -5/Zhirov | Met Zhirov 24137 | -5/Zhirov | Learned location of Quarantine (-3) 24137 | -5/Zhirov | Learned location of Testing (-2) 24145 | -5/Zhirov | Zhirov requested help retrieving the SGEMP Prototype 24167 | -5/Zhirov | Found Alien Artifact 24167 | -5/Zhirov | Identified Integrated Dissipator 24167 | -5/Zhirov | Installed Integrated Dissipator, increased core heat dissipation (+20) 24315 | -5/Zhirov | Found Alien Artifact 24386 | -5/Zhirov | Build established: Scavenger-Mutant 24502 | -5/Zhirov | Entered Proximity Caves 24521 | -4/Proximity Caves | Learned 4 Research zone layouts 24763 | -4/Proximity Caves | Attracted the attention of an 0b10 checkpoint 24839 | -4/Proximity Caves | Build established: Scavenger-Tank 24925 | -4/Proximity Caves | Learned Research emergency access door positions 25296 | -4/Proximity Caves | Build established: Scavenger-Skirmisher 25501 | -4/Proximity Caves | Lost 3 parts (2u1w) 25614 | -4/Proximity Caves | Lost 4 allies 25711 | -4/Proximity Caves | Entered Factory 25711 | -4/Factory | Evolved 2 slots: Utility x2 25712 | -4/Factory | Identified exit to Armory 25713 | -4/Factory | Identified exit to Upper Caves 25716 | -4/Factory | Loaded intel: 27 terminal locations 25857 | -4/Factory | Discovered new exit (range 17) 25919 | -4/Factory | System corruption reached 10% 26038 | -4/Factory | Lost 3 parts (2u1w) 26219 | -4/Factory | Scrapoids reinforcements arrived? 26336 | -4/Factory | Found Scrap Suit 26364 | -4/Factory | Lost 5 allies 26489 | -4/Factory | Lost 5 parts (1p1n1u2w) 26519 | -4/Factory | Identified Transdimensional Reconstructor 26519 | -4/Factory | Warped through subspace 26548 | -4/Factory | Lost 4 parts (1p1n2w) 26650 | -4/Factory | Lost 3 parts (1n1u1w) 26711 | -4/Factory | First assault squad dispatched 26751 | -4/Factory | System corruption reached 30% 26756 | -4/Factory | Incoming assault squad redirected 26793 | -4/Factory | Lost 11 parts (2p1n3u5w) 26906 | -4/Factory | Found Scrap Suit 26916 | -4/Factory | Found Scrap Suit 26918 | -4/Factory | Found Scrap Suit 26981 | -4/Factory | Incoming assault squad redirected 26988 | -4/Factory | Incoming assault squad redirected 27148 | -4/Factory | Scrapoids reinforcements arrived? 27201 | -4/Factory | Build established: Scavenger-Gunner 27351 | -4/Factory | Identified exit to Extension 27454 | -4/Factory | Lost 3 allies 27786 | -4/Factory | Entered Upper Caves 27791 | -4/Upper Caves | Core integrity fell below 50% 27834 | -4/Upper Caves | Lost 6 parts (2p2u2w) 28013 | -4/Upper Caves | Attracted the attention of an 0b10 checkpoint 28082 | -4/Upper Caves | Build established: Scavenger-Tank 28256 | -4/Upper Caves | A Derelict revealed a hidden shortcut to "reach the base" 28340 | -4/Upper Caves | Identified exit to Warlord 28351 | -4/Upper Caves | Entered Warlord 28396 | -4/Warlord | System corruption cleaned by Quarantine Array 28915 | -4/Warlord | Found Prototype Special Weapon 28917 | -4/Warlord | Found Prototype Special Weapon 28918 | -4/Warlord | Identified RU-N14's Throwing Claymores v3 (x2) 28921 | -4/Warlord | Found RU-N14's Throwing Claymores v3 28952 | -4/Warlord | Received a Watcher feed algorithm from an ecstatic Tinkerer 29084 | -4/Warlord | Warlord's base attacked by MAIN.C 29144 | -4/Warlord | Found Prototype Launcher 29183 | -4/Warlord | Build established: Commander-Tank 29249 | -4/Warlord | Identified Vortex Catalyst Activator 29319 | -4/Warlord | Spotted B-90 Cyclops 29325 | -4/Warlord | Spotted B-86 Titan 29366 | -4/Warlord | Warlord forces counterattacked 29387 | -4/Warlord | Destroyed 0U-J1C(g) 29389 | -4/Warlord | Spotted Executioner 29389 | -4/Warlord | Spotted Striker 29389 | -4/Warlord | Spotted B-90 Cyclops 29389 | -4/Warlord | Spotted Executioner 29391 | -4/Warlord | Lost 4 allies 29391 | -4/Warlord | Destroyed Executioner 29394 | -4/Warlord | Destroyed Executioner 29413 | -4/Warlord | Murdered 3 allies 29434 | -4/Warlord | Destroyed 7 combat bots 29444 | -4/Warlord | Lost 5 allies 29484 | -4/Warlord | Spotted Executioner 29521 | -4/Warlord | Build established: Scavenger-Tank 29527 | -4/Warlord | Lost 5 allies 29584 | -4/Warlord | Spotted Executioner 29586 | -4/Warlord | Spotted Executioner 29588 | -4/Warlord | Destroyed Executioner 29609 | -4/Warlord | Destroyed 10 combat bots 29628 | -4/Warlord | Lost 6 allies 29759 | -4/Warlord | Warlord base infiltrated, sounded retreat 29780 | -4/Warlord | Rebuked by Warlord 29864 | -4/Warlord | Spotted Striker 29864 | -4/Warlord | Spotted Striker 29899 | -4/Warlord | Lost 8 allies 29932 | -4/Warlord | Spotted Executioner 29956 | -4/Warlord | Spotted Striker 29956 | -4/Warlord | Spotted Striker 29962 | -4/Warlord | Found Corrupted Prototype Processor 29979 | -4/Warlord | Crushed by falling debris 30015 | -4/Warlord | Spotted Striker 30015 | -4/Warlord | Spotted Striker 30017 | -4/Warlord | Spotted B-90 Cyclops 30019 | -4/Warlord | Destroyed B-90 Cyclops 30073 | -4/Warlord | Lost 24 allies 30084 | -4/Warlord | Spotted Striker 30086 | -4/Warlord | Spotted Striker 30094 | -4/Warlord | Discovered new exit (range 14) 30105 | -4/Warlord | Identified exit to Proximity Caves 30106 | -4/Warlord | Entered Proximity Caves 30222 | -3/Proximity Caves | Identified Exp. Core Analyzer 30231 | -3/Proximity Caves | Attracted the attention of an 0b10 checkpoint 30478 | -3/Proximity Caves | Discovered new exit (range 9) 30707 | -3/Proximity Caves | Identified exit to Research 30711 | -3/Proximity Caves | Entered Research 30711 | -3/Research | Evolved 2 slots: Propulsion x2 30712 | -3/Research | Identified exit to Quarantine 30713 | -3/Research | Identified exit to Research 31098 | -3/Research | System corruption reached 10% 31247 | -3/Research | Entered Quarantine 31265 | -3/Quarantine | Found Alien Energy Cannon 31284 | -3/Quarantine | Cryocooling Duct disabled 31299 | -3/Quarantine | Ambient heat levels rising (+20) 31299 | -3/Quarantine | Non-combat units ordered to evacuate 31370 | -3/Quarantine | Build established: Scavenger-Gunner 31485 | -3/Quarantine | Found Alien Slashing Weapon 31491 | -3/Quarantine | Identified Sigix Broadsword 31585 | -3/Quarantine | Found Prototype Processor 31585 | -3/Quarantine | Identified Spectral Analyzer 31726 | -3/Quarantine | Found Quantum Capacitor 31943 | -3/Quarantine | Found Alien Artifact 31943 | -3/Quarantine | Identified Dimensional Node Initializer 31943 | -3/Quarantine | Initialized slip node 31951 | -3/Quarantine | Found Dimensional Node Initializer 31959 | -3/Quarantine | Found Transdimensional Reconstructor 31965 | -3/Quarantine | Found Alien Artifact 32099 | -3/Quarantine | Build established: Scavenger-Mutant 32215 | -3/Quarantine | Discovered exit to Research (range 16) 32382 | -3/Quarantine | Found Alien Artifact 32484 | -3/Quarantine | Found Alien Artifact 32484 | -3/Quarantine | Identified Phase Armor 32697 | -3/Quarantine | Found Alien Impact Weapon 32735 | -3/Quarantine | Found Alien Artifact 32735 | -3/Quarantine | Identified Core Reset Matrix 32735 | -3/Quarantine | Identified Subatomic Replicator 32735 | -3/Quarantine | Identified Core Cannon 32735 | -3/Quarantine | Identified Hpw. Transdimensional Reconstructor 32735 | -3/Quarantine | Identified Core Stripper 32735 | -3/Quarantine | Used Core Reset Matrix 32739 | -3/Quarantine | Detected hypermatrix surge 32739 | -3/Quarantine | Sensed 8 artifacts in vicinity 32909 | -3/Quarantine | Spotted Fortress 32996 | -3/Quarantine | Destroyed Fortress 33024 | -3/Quarantine | Build established: Alien-Mutant 33138 | -3/Quarantine | Discovered new exit (range 6) 33145 | -3/Quarantine | Identified exit to Section 7 33147 | -3/Quarantine | Entered Section 7 33148 | -3/Section 7 | Sensed 20 artifacts in vicinity 33259 | -3/Section 7 | Found Integrated Reactor 33259 | -3/Section 7 | Installed Integrated Reactor, increased core energy generation (+10) 33444 | -3/Section 7 | Spotted S7 Guard 33451 | -3/Section 7 | Found Integrated Thermoelectric Network 33451 | -3/Section 7 | Installed Integrated Thermoelectric Network, gained heat-energy exchange potential 33473 | -3/Section 7 | Destroyed S7 Guard 33484 | -3/Section 7 | Found Prototype Protection 33484 | -3/Section 7 | Identified Hvy. Regenerative Plating 33485 | -3/Section 7 | Spotted B-86 Titan 33553 | -3/Section 7 | Destroyed B-86 Titan 33668 | -3/Section 7 | Build established: Scavenger-Mutant 33743 | -3/Section 7 | Found Integrated Dissipator 33743 | -3/Section 7 | Installed Integrated Dissipator, increased core heat dissipation (+20) 33797 | -3/Section 7 | Found Integrated Reactor 33797 | -3/Section 7 | Installed Integrated Reactor, increased core energy generation (+10) 33898 | -3/Section 7 | Warped through subspace 33899 | -3/Section 7 | Core integrity fell below 50% 33989 | -3/Section 7 | Discovered exit to Research (range 13) 34005 | -3/Section 7 | Found Spacefold Activator 34014 | -3/Section 7 | Build established: Alien-Mutant 34149 | -3/Section 7 | Spotted S7 Guard 34162 | -3/Section 7 | Found Core Membrane 34162 | -3/Section 7 | Installed Core Membrane, gained immunity to corruption 34217 | -3/Section 7 | Initialized slip node 34272 | -3/Section 7 | Destroyed S7 Guard 34284 | -3/Section 7 | Core integrity fell below 20% 34298 | -3/Section 7 | Destroyed by S-43 Plague with Heavy Machine Gun Last Messages --------------- 34287_ Com. HERF Cannon destroyed. 34287_ Hvy. Treads destroyed. 34288_ K-01 Serf collects debris. 34289_ H-71 Marshal call for reinforcements jammed. 34289_ Nova Cannon destroyed. 34291_ Acquired 10 matter. 34291_ Beam penetrates H-71 Marshal. 34291_ H-71 Marshal destroyed. 34291_ Beam penetrates X-87 Electro. 34291_ X-87 Electro suffers critical hit (Destroy). 34291_ Destroyed Unknown Leg. 34291_ Beam penetrates Wall. 34292_ K-01 Serf collects debris. 34292_ Arm. Medium Treads destroyed. 34292_ U-05 Engineer builds a Wall. 34294_ Rnf. Fission Core destroyed. 34294_ Core Membrane filtered system corruption (1). 34296_ Arm. Medium Treads destroyed. 34296_ Exp. Biometal Heavy Treads destroyed. 34296_ Core Membrane filtered system corruption (1). Map ----- +----------------------------------------------------+ | | | | | | | | | | | | | | | ?????????????????????????????????????????????????? | | ?????????????????????????????????????????????????? | | ?????????????????????????????????????????????????? | | ?????????????????????????????????????????????????? | | ?????????????????????????????????????????????????? | | ?????????????????????????????????????????????????? | | ?????????????????????????????????????????????????? | | ?????????????????????????????????????????????????? | | ?????????????????????????????????????????????????? | | ##???????????????????????????????????????????????? | | #???????????????????????????????????????????????? | | #???????????????????????????????????????????????? | | #?###########???###+##??????????#???????????????? | | #?############### ####### ##??????????????? | | ################# "" / ???????????? | | ################# T"% ???????????? | | ######" ####### ####### #???????????????? | | ###### ########/########## ##???????????????? | | ####### < # ##%!@!x*# """""""" ????????? | | / ##]%=s"[# # #?????????? | | # ##%%!""]muu#????????????????? | | # ##sx"""Y# #????????????????? | | # ##!! s #? #????????????????? | | ############ ## k #???????????????????? | | #?????##### [=[ #########???????????????????? | | #?????##### ! ####????????????????????????? | | #?????##################????????????????????????? | | #?????##### ########"####???????????????????????? | | #?????############!== ####### #????????????????? | | #?????############% % #????????????????? | | #?????############ %= + ???????????? | | #??????#########?# ##########????????????????? | | ##????????????????## ########???????????????????? | | ???????????????????# # ""#???????????????????? | | ???????????????????# # ""#???????????????????? | | ???????????????????# / ""#???????????????????? | | ???????????????????# # """#???????????????????? | | ???????????????????#% # " "#???????????????????? | | ???????????????????# # ""#???????????????????? | | ???????????????????# # ""#???????????????????? | | ???????????????????# # " "#???????????????????? | | ???????????????????# # """"#???????????????????? | | ???????????????????# ########???????????????????? | +----------------------------------------------------+ Best States ------------- Heat Dissipation 101 Coolant Potential 100 Energy Generation 53 Energy Capacity 555 Matter Stores 400 Matter Capacity 400 Sight Range 16 Robot Scan Range 16 Terrain Scan Density 10 Jamming Range 16 Base Temperature (-) 200 Armor Coverage 1200 Core Shielding 30 Weapon Shielding 90 Point Defense Rating 240 Weapon Cycling 20 Melee Speed Boost 40 Evasion (%) 50 Targeting Accuracy 8 Core Analysis 8 Recoil Reduction 6 Kinecelleration 40 Salvage Targeting 4 Offensive Hacking 14 Defensive Hacking 12 Authchip Count 1 Item Schematics ----------------- None Robot Schematics ------------------ None Fabricated ------------ Nothing Alien Tech Used ----------------- Integrated Dissipator Transdimensional Reconstructor Sigix Broadsword Dimensional Node Initializer Phase Armor Core Reset Matrix Integrated Reactor Integrated Thermoelectric Network Core Stripper Core Membrane Spacefold Activator Core Cannon Achievements -------------- None Challenges ------------ None Game ------ Seed SignalBarrageKatana Manual? 0 Play Time 04:20:08 Cumulative 274.6 hours Start 2025.04.29 @ 01:11:22 End 2025.05.02 @ 05:20:31 Sessions 25 Manual Loads 0 Difficulty Rogue Special Mode None Game No. 70 Rogue 69 Adventurer 1 Explorer 0 Win Type - Total 24 Types 6/3/7/0/0/0/8/0/0 Lore% 62 Gallery% 79 Achievement% 69 Wizard Run 0 Options --------- Layout 0 ASCII 0 Keyboard 0 Movement Mouse Keybinds 0 Fullscreen 1 Font 18/Terminus Map View 76x50 Zoom Use 0% Tactical HUD 1 Map Filters NONE Filters NONE Steam 0 RUN: b9956d34-6a27-40ef-98e7-dc4e7a72797d